bitfinex/quotes_ETHUSD_20260121
["timestamp","ask_amount","ask_price","bid_price","bid_amount"]
[1769026844700,0.09838485,3012.4,3011.5,6.64120868]
[1769026844900,3.31893325,3013.1,3011.5,6.64120868]
[1769026844901,0.09838485,3013.3,3011.6,0.96354677]
[1769026845670,0.09838485,3013.4,3011.8,0.97302408]
[1769026845972,0.09838485,3013.6,3011.8,0.97302408]
[1769026846967,0.09838485,3014.0,3011.8,0.97302408]
[1769026847172,0.09838485,3014.5,3012.0,0.97302408]
[1769026847408,0.34155861,3014.4,3012.0,0.97302408]
[1769026847617,0.09838485,3014.5,3012.2,0.97302408]
[1769026847828,0.002,3015.2,3012.7,0.97302408]
[1769026848101,0.002,3015.2,3012.9,0.97302408]
[1769026848276,0.09838485,3014.7,3012.9,0.97302408]
[1769026849012,0.09838485,3014.1,3012.9,0.97302408]
[1769026849305,0.09838485,3013.7,3012.9,0.97302408]
[1769026849482,0.09838485,3013.0,3012.2,0.97302408]
[1769026849683,0.09838485,3013.0,3012.3,3.31972247]
[1769026849878,0.09838485,3013.0,3012.2,4.29283046]
[1769026850279,0.09838485,3013.0,3011.8,3.32124428]
[1769026850280,0.09838485,3012.7,3011.8,3.32124428]
[1769026850510,0.09838485,3012.5,3011.8,0.001]
[1769026850814,0.09838485,3012.5,3010.9,0.97302408]
[1769026850815,0.09838485,3011.8,3010.9,0.97302408]
[1769026850985,0.09838485,3011.9,3011.4,3.32070919]
[1769026851310,0.09838485,3011.9,3011.3,3.32078674]
[1769026851604,0.09838485,3011.9,3011.0,3.32115576]
[1769026851822,0.09838485,3011.7,3011.0,3.32115576]
[1769026851995,0.09838485,3011.5,3010.9,0.97302408]
[1769026852199,0.09838485,3011.3,3010.3,0.97302408]
[1769026852397,0.09838485,3010.8,3010.3,0.97302408]
[1769026852597,0.09838485,3010.6,3009.7,0.97302408]
[1769026852817,0.09838485,3010.6,3010.0,3.32218619]
[1769026853120,0.09838485,3010.6,3010.1,3.32212245]
[1769026853294,0.09838485,3010.6,3009.8,4.295404]
[1769026853481,0.09838485,3011.5,3010.3,4.29491441]
[1769026853688,0.09838485,3011.1,3010.3,4.29491441]
[1769026853933,0.09838485,3011.1,3010.3,0.97302408]
[1769026854228,0.09838485,3011.1,3010.3,4.29491255]
[1769026854517,0.09838485,3010.9,3010.3,0.97302408]
[1769026854721,0.09838485,3010.5,3009.8,0.76180955]
[1769026854931,0.09838485,3010.5,3009.9,3.32234852]
[1769026855089,0.09838485,3010.6,3009.7,0.97302408]
[1769026855289,0.09838485,3010.6,3010.0,3.32218798]
[1769026855531,0.09838485,3010.6,3009.7,0.97302408]
[1769026855532,0.09838485,3010.4,3009.7,0.97302408]
[1769026855717,0.09838485,3010.4,3009.0,3.49670504]
[1769026855718,0.09838485,3009.8,3009.1,0.97302408]
[1769026855920,0.09838485,3009.7,3009.1,4.29617879]
[1769026856136,0.09838485,3010.0,3009.1,4.29617879]
[1769026856428,0.09838485,3010.3,3009.3,0.97302408]
[1769026856631,0.09838485,3010.1,3009.3,0.97302408]
[1769026857623,0.09838485,3008.6,3007.8,3.32468914]
[1769026857835,0.09838485,3008.8,3007.4,3.32513134]
[1769026858000,0.09838485,3008.8,3006.8,0.97302408]
[1769026858001,0.09838485,3007.9,3006.8,0.97302408]
[1769026858201,0.22638485,3009.7,3007.3,3.34619189]
[1769026858407,0.09838485,3007.8,3007.3,0.0210066]
[1769026858700,0.09838485,3007.8,3004.9,0.05]
[1769026858701,0.09838485,3006.5,3005.5,8.47523126]
[1769026858920,0.09838485,3006.7,3005.6,0.18207645]
[1769026859108,0.09838485,3007.1,3005.6,0.18207645]
[1769026859109,0.09838485,3007.1,3005.8,0.97302408]
[1769026859301,0.09838485,3008.2,3006.0,0.97302408]
[1769026859516,0.09838485,3008.2,3006.2,0.92739121]
[1769026859823,0.09838485,3008.2,3006.1,0.03326569]
[1769026859824,0.09838485,3007.8,3006.6,0.92739121]
[1769026860021,0.09838485,3007.0,3006.4,3.32620915]
[1769026860328,0.09838485,3008.3,3006.5,0.92739121]
[1769026860529,0.09838485,3007.9,3006.5,0.92739121]
[1769026860702,0.09838485,3008.8,3006.5,0.92739121]
[1769026860894,0.09838485,3008.3,3006.5,0.92739121]
[1769026861324,0.09838485,3008.1,3006.5,0.92739121]
[1769026861523,0.09838485,3008.3,3006.5,0.92739121]
[1769026861722,0.09838485,3008.9,3006.7,0.92739121]
[1769026861920,0.09838485,3009.4,3007.0,0.92739121]
[1769026862095,0.09838485,3009.4,3007.3,0.92739121]
[1769026862096,0.09838485,3009.0,3007.3,0.92739121]
[1769026863329,0.09838485,3010.0,3007.3,0.92739121]
[1769026863515,0.09838485,3009.3,3007.3,0.92739121]
[1769026863717,0.09838485,3009.3,3007.5,0.92739121]
[1769026864117,0.09838485,3009.1,3007.5,0.92739121]
[1769026864324,0.09838485,3009.1,3007.6,0.92739121]
[1769026865129,0.09838485,3008.5,3007.4,6.65026268]
[1769026865331,0.09838485,3007.9,3007.2,3.32525051]
[1769026865630,0.09838485,3007.9,3007.3,3.32521259]
[1769026865807,0.09838485,3007.9,3006.6,0.92739121]
[1769026865808,0.09838485,3007.5,3006.6,0.92739121]
[1769026866012,0.09838485,3007.5,3006.7,0.75796446]
[1769026866700,0.09838485,3007.3,3006.7,0.75796446]
[1769026866907,0.09838485,3007.3,3006.6,0.92739121]
[1769026867134,0.09838485,3007.0,3006.5,3.32612672]
[1769026867634,0.09838485,3006.8,3006.3,0.001]
[1769026867930,0.09838485,3006.8,3005.5,5.14794463]
[1769026867931,0.09838485,3006.4,3005.6,6.6542454]
[1769026868133,0.09838485,3006.4,3005.6,7.50174639]
[1769026868337,0.09838485,3006.4,3005.0,3.8767016]
[1769026868338,0.09838485,3005.6,3004.5,0.92739121]
[1769026868511,0.09838485,3005.9,3005.1,3.32763991]
[1769026868703,0.09838485,3006.0,3004.6,0.92739121]
[1769026869052,0.09838485,3006.8,3003.7,0.549]
[1769026869053,0.09838485,3006.9,3005.6,0.92739121]
[1769026869254,0.09838485,3006.7,3005.6,0.92739121]
[1769026869438,0.09838485,3006.9,3005.6,0.92739121]
[1769026869758,0.09838485,3006.7,3005.7,6.65402402]
[1769026870042,0.09838485,3006.7,3005.7,10.73917755]
[1769026870244,0.09838485,3006.5,3005.7,6.65402402]
[1769026870468,0.09838485,3006.3,3005.7,6.65402402]
[1769026870817,0.09838485,3006.5,3005.7,3.32701201]
[1769026871017,0.09838485,3006.9,3005.7,9.98103603]
[1769026871330,0.09838485,3007.1,3005.7,9.98103603]
[1769026871331,0.09838485,3006.1,3005.7,3.32701201]
[1769026871513,0.09838485,3006.3,3005.6,3.32708406]
[1769026871711,0.09838485,3006.3,3004.9,4.25522142]
[1769026871712,0.09838485,3005.9,3004.9,4.25522971]
[1769026871916,0.09838485,3005.8,3004.1,0.92739121]
[1769026872113,0.09838485,3005.2,3004.9,3.32789706]
[1769026872343,0.09838485,3005.7,3004.9,3.32789394]
[1769026872644,0.09838485,3006.4,3004.9,11.57668155]
[1769026873031,0.09838485,3006.2,3004.9,8.24878379]
[1769026873233,0.09838485,3005.7,3004.9,7.3193945]
[1769026873431,0.09838485,3005.8,3004.9,3.32589586]
[1769026873810,0.09838485,3005.8,3004.4,0.92739121]
[1769026874445,0.09838485,3006.0,3004.4,0.92739121]
[1769026874652,0.09838485,3005.8,3004.4,0.92739121]
[1769026875420,0.09838485,3005.6,3004.4,0.92739121]
[1769026876047,0.09838485,3005.8,3004.5,9.98502246]
[1769026876221,0.09838485,3005.6,3004.5,6.65668164]
[1769026876422,0.09838485,3005.6,3004.5,9.98502246]
[1769026876623,0.09838485,3005.4,3004.5,6.65668164]
[1769026876841,0.09838485,3005.1,3004.2,0.003]
[1769026877043,0.09838485,3005.4,3004.4,3.3284256]
[1769026877242,0.09838485,3005.6,3004.4,3.3284256]
[1769026877243,0.09838485,3005.3,3004.4,3.3284256]
[1769026877454,0.09838485,3005.7,3004.4,6.6568772]
[1769026877634,0.09838485,3005.6,3004.5,0.66568772]
[1769026877983,0.09838485,3005.1,3004.2,0.003]
[1769026878340,0.09838485,3005.3,3004.2,0.003]
[1769026878522,0.09838485,3005.1,3004.2,0.003]
[1769026878726,0.09838485,3004.7,3004.2,0.003]
[1769026879130,0.09838485,3004.7,3003.3,0.97108409]
[1769026879131,0.09838485,3004.3,3003.3,0.97108409]
[1769026879348,0.09838485,3004.3,3003.3,0.43009072]
[1769026879552,0.09838485,3004.1,3003.3,0.43009072]
[1769026879856,0.09838485,3004.3,3003.6,3.3293269]
[1769026880155,0.09838485,3003.5,3002.9,3.33010082]
[1769026880340,3.42675934,3004.5,3002.3,0.00189793]
[1769026880341,0.09838485,3004.4,3003.2,4.3008406]
[1769026880548,0.09838485,3004.4,3003.3,0.43008406]
[1769026880742,0.09838485,3003.8,3003.5,0.00838257]
[1769026881059,0.09838485,3003.6,3003.5,0.00838257]
[1769026881355,0.09838485,3004.4,3003.5,0.00838257]
[1769026881356,0.09838485,3004.5,3003.5,0.00838257]
[1769026881649,0.09838485,3004.1,3003.5,0.00838257]
[1769026882078,0.09838485,3003.9,3003.5,3.33780596]
[1769026882277,0.09838485,3005.1,3003.5,13.99289872]
[1769026882493,0.09838485,3005.0,3003.6,0.97108409]
[1769026882639,0.09838485,3005.8,3003.6,0.97108409]
[1769026882640,0.09838485,3005.2,3003.6,0.97108409]
[1769026882845,0.09838485,3005.0,3003.7,1.74612446]
[1769026883276,0.09838485,3004.8,3003.7,1.74612446]
[1769026883487,0.09838485,3005.4,3003.8,0.97108409]
[1769026883704,0.09838485,3005.4,3003.7,0.77504037]
[1769026883705,0.09838485,3004.0,3003.7,0.77504037]
[1769026883845,0.09838485,3004.2,3003.5,3.33780596]
[1769026884047,0.09838485,3004.3,3003.5,6.66725493]
[1769026884565,0.09838485,3005.5,3003.6,0.97108409]
[1769026884777,3.32604901,3006.6,3003.7,0.97108409]
[1769026885077,4.32093357,3007.0,3003.7,0.97108409]
[1769026885078,0.09838485,3005.6,3003.7,0.97108409]
[1769026885572,0.09838485,3006.4,3004.1,0.97108409]
[1769026885785,0.09838485,3005.7,3004.1,0.97108409]
[1769026885944,0.09838485,3006.4,3004.3,0.97108409]
[1769026886138,0.09838485,3005.9,3004.3,0.97108409]
[1769026886381,0.09838485,3006.4,3004.5,0.97108409]
[1769026886788,0.09838485,3006.2,3004.5,0.97108409]
[1769026887093,0.09838485,3005.9,3004.5,0.97108409]
[1769026887397,0.09838485,3006.1,3004.5,0.97108409]
[1769026887688,0.09838485,3007.7,3004.9,0.97108409]
[1769026887855,0.09838485,3007.7,3005.1,0.97108409]
[1769026887856,0.09838485,3006.8,3005.1,0.97108409]
[1769026888185,0.09838485,3006.8,3005.3,0.97108409]
[1769026888402,0.09838485,3007.7,3005.4,0.97108409]
[1769026888541,0.002,3007.0,3005.4,0.97108409]
[1769026889353,0.09838485,3008.0,3005.4,0.97108409]
[1769026889553,0.09838485,3008.0,3005.3,0.2335703]
[1769026889554,0.09838485,3007.8,3005.9,0.97108409]
[1769026889790,0.09838485,3008.0,3005.9,0.97108409]
[1769026889951,0.09838485,3007.8,3005.9,0.97108409]
[1769026890147,0.09838485,3008.3,3006.2,0.97108409]
[1769026890362,0.09838485,3008.9,3006.4,0.97108409]
[1769026890363,0.09838485,3007.8,3006.4,0.97108409]
[1769026890749,0.09838485,3008.0,3006.4,0.97108409]
[1769026890750,0.09838485,3007.7,3006.4,0.97108409]
[1769026891082,0.09838485,3007.8,3006.4,0.97108409]
[1769026891259,0.09838485,3007.6,3006.4,0.97108409]
[1769026891772,0.09838485,3007.8,3006.4,0.97108409]
[1769026892175,0.09838485,3007.8,3006.5,9.97838016]
[1769026892382,0.09838485,3007.8,3006.6,1.09494643]
[1769026892749,0.09838485,3008.0,3006.6,1.09494643]
[1769026892944,0.09838485,3008.2,3006.7,0.97108409]
[1769026893277,0.09838485,3007.9,3006.7,0.97108409]
[1769026893444,0.09838485,3008.3,3006.7,0.97108409]
[1769026893648,0.09838485,3008.3,3006.6,1.09494643]
[1769026893649,0.09838485,3008.5,3006.8,1.17768714]
[1769026893849,0.09838485,3008.3,3006.8,0.97108409]
[1769026894049,0.09838485,3007.7,3006.5,6.65225344]
[1769026894285,0.09838485,3008.1,3006.5,6.65225344]
[1769026894481,0.09838485,3008.5,3006.6,0.97108409]
[1769026894685,1.02286463,3009.6,3006.5,6.65225344]
[1769026894686,0.10038485,3008.6,3006.7,0.97108409]
[1769026895953,0.002,3008.6,3006.7,0.97108409]
[1769026896259,0.002,3008.6,3006.9,0.97108409]
[1769026896884,0.002,3008.6,3007.3,0.97108409]
[1769026897090,0.09838485,3008.5,3007.3,0.97108409]
[1769026897283,0.002,3008.6,3007.3,0.97108409]
[1769026898403,0.002,3008.6,3007.4,9.97539402]
[1769026898552,0.002,3008.6,3007.5,1.09464781]
[1769026898553,0.002,3008.3,3007.5,1.09464781]
[1769026898956,1e-08,3008.6,3007.6,0.97108409]
[1769026899161,0.09838485,3009.1,3007.6,0.97108409]
[1769026900071,0.09838485,3007.9,3007.0,0.55]
[1769026900274,0.09838485,3008.1,3006.5,0.97108409]
[1769026900783,0.09838485,3008.3,3006.6,0.97108409]
[1769026900983,6.64805212,3008.4,3006.6,0.97108409]
[1769026901195,0.09838485,3007.9,3006.6,0.97108409]
[1769026901393,0.09838485,3007.7,3006.0,0.97108409]
[1769026901561,0.09838485,3007.5,3006.0,0.97108409]
[1769026901960,0.09838485,3007.1,3006.0,0.97108409]
[1769026902393,3.42386573,3007.1,3006.0,0.97108409]
[1769026902561,0.09838485,3007.1,3006.0,0.97108409]
[1769026903096,6.74937481,3007.1,3006.0,0.97108409]
[1769026903260,0.09838485,3006.7,3005.4,0.97108409]
[1769026903461,0.09838485,3006.5,3005.4,0.97108409]
[1769026903998,0.09838485,3006.5,3005.4,4.29840933]
[1769026904768,0.09838485,3006.3,3004.9,0.97108409]
[1769026904964,0.09838485,3006.8,3005.4,4.2984282]
[1769026905164,0.09838485,3006.8,3005.4,6.65468822]
[1769026905402,0.09838485,3007.1,3005.5,0.97108409]
[1769026905888,0.09838485,3007.7,3005.5,0.97108409]
[1769026906270,0.09838485,3007.7,3005.7,0.91703132]
[1769026906800,0.09838485,3007.6,3005.7,0.91703132]
[1769026907167,0.09838485,3008.1,3005.7,0.91703132]
[1769026907497,0.09838485,3007.9,3005.8,0.91703132]
[1769026907702,0.09838485,3008.1,3005.8,0.91703132]
[1769026908021,0.09838485,3008.3,3005.8,0.91703132]
[1769026908308,0.09838485,3008.1,3006.0,0.91703132]
[1769026909578,0.09838485,3007.7,3006.0,0.91703132]
[1769026909778,0.09838485,3007.3,3006.0,0.91703132]
[1769026910404,0.09838485,3006.9,3006.0,0.91703132]
[1769026910577,0.09838485,3006.7,3006.0,0.91703132]
[1769026910779,0.09838485,3006.7,3005.5,0.003]
[1769026911095,0.09838485,3006.7,3006.1,0.001]
[1769026911271,0.09838485,3006.5,3006.1,0.001]
[1769026911825,0.09838485,3006.5,3005.5,3.33020471]
[1769026912112,0.09838485,3006.5,3005.5,0.003]
[1769026912513,0.09838485,3006.5,3005.5,3.33022133]
[1769026912715,0.09838485,3006.7,3005.6,0.91703132]
[1769026913023,0.09838485,3007.1,3005.6,0.91703132]
[1769026913214,0.09838485,3006.9,3005.6,0.91703132]
[1769026913717,0.09838485,3007.1,3005.6,0.91703132]
[1769026913896,0.09838485,3007.1,3005.8,0.91703132]
[1769026914522,0.09838485,3007.1,3005.9,4.24382196]
[1769026914884,0.09838485,3007.1,3005.9,7.5706126]
[1769026915104,0.09838485,3007.2,3005.9,7.5706126]
[1769026915417,0.09838485,3006.8,3005.8,3.32686227]
[1769026915578,0.09838485,3006.8,3005.5,0.003]
[1769026915786,0.09838485,3006.5,3004.7,0.91703132]
[1769026916021,0.09838485,3006.5,3003.9,0.91703132]
[1769026916022,0.09838485,3005.3,3003.9,0.91703132]
[1769026916317,0.09838485,3005.3,3003.8,0.001]
[1769026916318,0.09838485,3004.5,3003.8,0.1741468]
[1769026916479,0.09838485,3004.7,3003.8,0.001]
[1769026916883,0.09838485,3004.6,3003.8,0.001]
[1769026917784,0.09838485,3004.9,3003.8,0.001]
[1769026918025,0.09838485,3004.7,3003.8,0.001]
[1769026918384,0.09838485,3004.9,3003.8,0.91803132]
[1769026918591,0.09838485,3004.9,3003.9,6.65801124]
[1769026918799,0.01979611,3004.9,3003.9,3.32900562]
[1769026919116,0.09838485,3005.3,3004.0,0.91703132]
[1769026919335,0.09838485,3005.1,3004.0,0.91703132]
[1769026920533,0.09838485,3005.1,3004.1,3.32878399]
[1769026920733,0.09838485,3006.1,3004.2,0.95148387]
[1769026920929,0.09838485,3006.1,3004.1,9.98635197]
[1769026920930,0.09838485,3005.8,3004.3,0.95148387]
[1769026921138,3.42402008,3007.0,3004.3,0.95148387]
[1769026921310,0.09838485,3007.0,3004.3,0.95148387]
[1769026921514,0.09838485,3006.5,3004.3,0.95148387]
[1769026921827,0.09838485,3006.1,3004.3,0.95148387]
[1769026922028,0.09838485,3005.2,3004.1,7.60905185]
[1769026922346,0.09838485,3005.4,3004.2,0.95148387]
[1769026922521,0.09838485,3006.1,3004.4,0.95148387]
[1769026922710,0.09838485,3005.3,3004.3,3.32856239]
[1769026923055,0.09838485,3005.9,3004.3,10.93717104]
[1769026923247,0.09838485,3006.1,3004.4,0.95148387]
[1769026923408,0.09838485,3005.7,3004.6,0.95148387]
[1769026923614,0.09838485,3005.7,3004.3,9.98668717]
[1769026923914,0.002,3006.2,3004.4,0.95148387]
[1769026924341,0.002,3007.8,3005.1,0.95148387]
[1769026924553,0.09838485,3007.4,3005.5,0.95148387]
[1769026924752,0.002,3007.8,3005.5,0.95148387]
[1769026925120,0.002,3007.8,3005.7,0.95148387]
[1769026925519,0.002,3007.8,3005.6,0.2335703]
[1769026925520,0.002,3007.8,3005.9,0.95148387]
[1769026925721,0.09838485,3007.7,3005.9,0.95148387]
[1769026925921,0.09838485,3007.3,3005.9,0.95148387]
[1769026926123,0.09506485,3007.3,3005.9,0.95148387]
[1769026926450,0.06551485,3007.1,3005.9,0.95148387]
[1769026926610,0.06551485,3007.1,3006.0,6.65335994]
[1769026926827,0.09838485,3007.7,3006.1,0.95148387]
[1769026927028,0.09838485,3007.5,3006.1,0.95148387]
[1769026927338,0.09838485,3007.3,3006.1,0.95148387]
[1769026927548,0.09838485,3007.3,3006.0,6.65335994]
[1769026927717,0.002,3008.3,3006.5,0.95148387]
[1769026927919,0.002,3008.3,3006.7,0.95148387]
[1769026928537,0.002,3008.3,3006.8,6.65158972]
[1769026928863,0.09838485,3007.8,3006.5,3.32603616]
[1769026929022,0.002,3008.3,3006.7,3.32586237]
[1769026929223,0.09838485,3008.2,3006.7,6.65176784]
[1769026929454,0.09838485,3007.8,3005.9,0.95148387]
[1769026929641,0.09838485,3008.0,3006.8,3.32579486]
[1769026929842,0.09838485,3008.0,3005.9,0.95148387]
[1769026929843,0.09838485,3007.6,3006.3,3.32625167]
[1769026930053,0.09838485,3007.6,3005.9,0.95148387]
[1769026930054,0.09838485,3007.6,3006.7,3.32587091]
[1769026930453,0.09838485,3007.8,3006.7,6.65177638]
[1769026930758,0.09838485,3007.8,3006.1,0.95148387]
[1769026931755,0.09838485,3007.4,3006.1,0.95148387]
[1769026931954,0.09838485,3007.6,3006.1,0.95148387]
[1769026932460,0.09838485,3007.2,3006.0,6.65329534]
[1769026932627,0.09838485,3007.4,3006.0,9.97997531]
[1769026932955,0.09838485,3007.6,3005.8,0.95148387]
[1769026933874,0.09838485,3008.0,3005.8,0.95148387]
[1769026934026,0.09838485,3007.9,3005.8,0.95148387]
[1769026934228,0.09838485,3007.5,3006.0,0.95148387]
[1769026934419,0.09838485,3007.2,3006.0,0.95148387]
[1769026934934,0.09838485,3007.2,3006.1,3.3265693]
[1769026935137,0.09838485,3007.0,3005.7,3.32695647]
[1769026935331,0.09838485,3006.8,3005.9,3.32670399]
[1769026935526,0.09838485,3006.8,3005.1,0.55]
[1769026935527,0.09838485,3006.6,3004.9,2.33761744]
[1769026935736,0.09838485,3006.6,3004.5,3.32830545]
[1769026935737,0.09838485,3005.9,3004.5,3.32830741]
[1769026935933,0.09838485,3006.2,3004.5,3.32830741]
[1769026935934,0.09838485,3006.2,3004.6,2.33761744]
[1769026936138,0.09838485,3006.4,3004.6,2.33761744]
[1769026936634,0.09838485,3006.6,3004.6,2.33761744]
[1769026936825,0.09838485,3006.2,3004.7,9.98435781]
[1769026938140,0.09838485,3006.8,3006.3,0.001]
[1769026938441,0.09838485,3006.8,3004.8,2.33761744]
[1769026938645,0.09838485,3006.6,3004.8,2.33761744]
[1769026938849,0.09838485,3006.6,3004.9,13.31159104]
[1769026939053,0.09838485,3006.8,3005.0,2.33761744]
[1769026939256,0.09838485,3007.5,3005.0,2.33761744]
[1769026939561,0.09838485,3006.9,3005.1,2.88761744]
[1769026940060,0.09838485,3007.1,3005.3,2.33761744]
[1769026940274,0.09838485,3007.9,3004.9,16.6394888]
[1769026940275,0.09838485,3007.4,3005.4,0.55]
[1769026940432,0.09838485,3007.4,3005.4,2.33761744]
[1769026940433,0.09838485,3007.2,3005.4,2.33761744]
[1769026940630,0.09838485,3007.2,3005.5,0.55]
[1769026941034,0.09838485,3007.0,3005.6,6.6542454]
[1769026941275,0.09838485,3006.5,3005.5,3.32721831]
[1769026941476,0.09838485,3006.8,3005.5,6.65445171]
[1769026941775,0.09838485,3007.2,3005.5,9.98168511]
[1769026942557,0.09838485,3007.3,3005.5,9.98168511]
[1769026942753,0.09838485,3006.9,3005.5,6.65445171]
[1769026943149,0.09838485,3007.1,3005.5,9.98168511]
[1769026943362,0.09838485,3007.1,3005.5,6.65445171]
[1769026943363,0.09838485,3006.9,3005.5,6.65445171]
[1769026944581,0.09838485,3006.6,3005.5,3.32721831]
[1769026944774,0.09838485,3006.6,3005.5,6.65445171]
[1769026944984,0.09838485,3006.4,3004.6,9.78221783]
[1769026945186,0.09838485,3006.2,3004.7,0.55]
[1769026945504,0.09838485,3006.0,3004.6,6.65640837]
[1769026945660,0.09838485,3006.0,3004.6,9.98463841]
[1769026946005,0.09838485,3006.2,3004.6,9.98463841]
[1769026946216,0.09838485,3007.4,3004.7,3.12580946]
[1769026946366,0.09838485,3007.4,3004.9,3.12580946]
[1769026947193,0.09838485,3007.4,3005.0,16.43695754]
[1769026947407,0.09838485,3007.4,3005.1,3.12580946]
[1769026947611,0.09838485,3007.2,3005.1,3.12580946]
[1769026948570,0.09838485,3007.8,3005.2,3.42580946]
[1769026949181,0.09838485,3007.8,3005.4,3.12580946]
[1769026949993,0.002,3006.9,3005.4,3.12580946]
[1769026950192,0.09838485,3007.9,3005.8,3.12580946]
[1769026950361,0.09838485,3008.4,3006.0,3.12580946]
[1769026950560,0.09838485,3007.8,3006.1,0.55]
[1769026950799,0.002,3007.2,3006.1,0.55]
[1769026951219,0.09838485,3008.4,3006.3,3.12580946]
[1769026951368,0.09838485,3008.4,3006.4,3.12580946]
[1769026951888,0.002,3008.5,3006.4,3.12580946]
[1769026952863,0.10038485,3008.5,3006.4,3.12580946]
[1769026953266,0.10038485,3008.5,3006.2,16.63229325]
[1769026953267,0.10038485,3008.5,3006.5,13.30450688]
[1769026953479,0.10038485,3008.5,3006.5,16.43031634]
[1769026954074,0.10038485,3008.5,3006.6,3.12580946]
[1769026954275,0.002,3008.5,3006.6,3.12580946]
[1769026954476,0.002,3008.5,3006.9,3.12580946]
[1769026954700,0.002,3009.9,3007.6,3.12580946]
[1769026954898,0.002,3009.9,3007.8,3.12580946]
[1769026955377,3.32683284,3010.6,3008.0,3.12580946]
[1769026955378,0.09838485,3010.4,3008.0,3.12580946]
[1769026955584,3.22844799,3011.2,3008.2,3.12580946]
[1769026955796,0.09838485,3010.6,3008.2,3.12580946]
[1769026955993,0.09838485,3011.3,3008.6,3.12580946]
[1769026956302,0.09838485,3011.5,3009.3,3.12580946]
[1769026956522,0.09838485,3012.2,3009.4,3.67580946]
[1769026956807,0.09838485,3012.2,3009.6,3.12580946]
[1769026957022,0.09838485,3012.2,3009.7,3.12580946]
[1769026957186,0.09838485,3011.4,3009.5,9.96843327]
[1769026957384,0.09838485,3011.6,3009.7,0.55]
[1769026957600,0.09838485,3011.8,3009.7,0.55]
[1769026957803,0.09838485,3011.8,3009.7,3.67580946]
[1769026958184,0.09838485,3011.8,3009.8,0.55]
[1769026958185,0.09838485,3011.6,3009.8,0.55]
[1769026958520,0.09838485,3011.8,3009.9,0.55]
[1769026959105,0.09838485,3011.9,3009.9,0.55]
[1769026959411,0.09838485,3011.7,3010.0,7.19351826]
[1769026959718,0.09838485,3011.7,3010.0,10.51577739]
[1769026960119,0.09838485,3011.9,3010.0,10.51577739]
[1769026960815,0.09838485,3011.9,3010.1,0.549]
[1769026961319,0.09838485,3011.7,3010.2,6.6440768]
[1769026962004,0.09838485,3011.7,3010.2,3.8710384]
[1769026962186,0.09838485,3011.7,3010.2,3.3220384]
[1769026962390,0.45008608,3011.7,3010.2,3.3220384]
[1769026962586,0.09838485,3011.7,3010.2,6.6440768]
[1769026962790,0.09838485,3011.9,3010.2,9.9661152]
[1769026962986,0.09838485,3011.9,3010.2,6.6440768]
[1769026962987,0.09838485,3011.7,3010.2,6.6440768]
[1769026963819,0.002,3011.9,3010.2,13.09192466]
[1769026964989,0.002,3011.9,3010.2,9.76988626]
[1769026965243,0.002,3011.9,3010.3,3.12580946]
[1769026965453,0.002,3011.9,3010.4,6.64363538]
[1769026965591,0.002,3011.9,3010.4,7.19263538]
[1769026965793,0.002,3011.9,3010.4,10.51445307]
[1769026966316,0.002,3011.9,3010.4,15.43032082]
[1769026966516,0.002,3011.9,3010.5,5.0142526]
[1769026967498,0.002,3011.9,3010.7,4.91586775]
[1769026967698,0.002,3012.2,3010.7,4.91586775]
[1769026968023,0.002,3012.2,3010.7,5.0142526]
[1769026968226,0.002,3013.5,3011.2,4.91586775]
[1769026968425,0.002,3013.5,3011.3,4.91586775]
[1769026968731,0.09838485,3013.0,3011.4,0.549]
[1769026969087,0.09838485,3013.4,3011.4,0.549]
[1769026969294,0.002,3013.5,3011.5,4.91586775]
[1769026969501,0.002,3013.5,3011.6,10.51048224]
[1769026970023,0.002,3013.5,3011.6,7.18998816]
[1769026970210,0.09838485,3013.2,3011.1,3.32094019]
[1769026970414,4.68924317,3012.6,3010.4,3.32171472]
[1769026970642,5.26639082,3012.5,3010.2,0.549]
[1769026970820,5.26639082,3012.5,3010.2,8.23786385]
[1769026970821,0.4787628,3012.5,3010.2,8.23786385]
[1769026971009,0.09838485,3012.9,3011.2,3.32087227]
[1769026971337,0.09838485,3012.7,3011.0,3.32109237]
[1769026972025,0.09838485,3012.9,3011.1,3.32094784]
[1769026972225,0.09838485,3012.8,3011.1,3.32094784]
[1769026972423,0.44996502,3012.8,3011.1,6.6419933]
[1769026972628,0.09838485,3012.6,3011.1,3.32094784]
[1769026973434,4.78762802,3012.8,3011.1,6.6419933]
[1769026973602,0.09838485,3012.6,3011.1,3.32094784]
[1769026973948,0.09838485,3012.8,3011.1,6.6419933]
[1769026974116,0.4787628,3012.7,3010.8,9.96412911]
[1769026974439,0.09838485,3012.6,3010.8,6.64275274]
[1769026974636,0.09838485,3012.6,3010.8,9.96412911]
[1769026974792,0.4787628,3012.7,3010.9,4.91586775]
[1769026974998,0.09838485,3013.4,3010.9,4.91586775]
[1769026975525,0.09838485,3013.2,3010.9,4.91586775]
[1769026976117,0.09838485,3013.4,3011.1,4.91586775]
[1769026976429,4.69124317,3013.5,3011.3,0.001]
[1769026976628,4.78762802,3013.4,3011.3,0.55]
[1769026976832,0.002,3012.4,3011.3,0.55]
[1769026977008,0.002,3012.4,3011.4,0.549]
[1769026977618,0.002,3013.5,3011.4,5.46486775]
[1769026978021,0.002,3013.5,3011.5,18.19828511]
[1769026978423,0.002,3013.5,3011.5,21.51888945]
[1769026978720,0.002,3013.5,3011.6,4.91586775]
[1769026979123,0.002,3013.5,3011.7,0.549]
[1769026979323,0.002,3013.5,3011.5,9.96181302]
[1769026979324,0.09838485,3013.4,3011.5,9.96181302]
[1769026979515,0.09838485,3013.4,3011.5,7.19020868]
[1769026979834,0.68713463,3013.4,3011.5,10.51081302]
[1769026980040,0.58874978,3013.4,3011.7,9.96115149]
[1769026980341,0.09838485,3013.3,3011.7,6.64076766]
[1769026980535,0.09838485,3012.9,3011.7,6.64076766]
[1769026980832,0.09838485,3013.1,3011.7,6.64076766]
[1769026981036,0.09838485,3012.4,3011.4,3.32065877]
[1769026981336,0.09838485,3012.8,3011.4,3.32062502]
[1769026981502,0.09838485,3012.8,3011.3,0.001]
[1769026981503,0.09838485,3013.0,3011.6,6.6409502]
[1769026981708,0.09838485,3012.5,3011.3,0.001]
[1769026981907,0.09838485,3012.5,3011.6,3.32049256]
[1769026982211,0.09838485,3012.3,3011.3,0.001]
[1769026982534,0.09838485,3011.9,3011.3,0.001]
[1769026982923,0.09838485,3011.5,3010.3,3.32185208]
[1769026983239,0.09838485,3011.1,3010.1,3.32208333]
[1769026983424,0.09838485,3011.1,3009.8,3.32240027]
[1769026983610,0.09838485,3011.1,3010.1,3.32207131]
[1769026983810,0.09838485,3011.1,3009.6,5.62731872]
[1769026984133,0.09838485,3011.5,3009.2,13.29256944]
[1769026984437,0.09838485,3011.2,3009.7,0.549]
[1769026984832,0.09838485,3011.2,3009.2,16.6157118]